Workbook

Sheet TDSheet
Q1: ЗАТВЕРДЖЕНО
Q2: Наказ Міністерства фінансів України 26 серпня 2014 року №836
M4: ЗАТВЕРДЖЕНО:
M6: Наказ / розпорядчий документ
M7: Наказ Управління у справах фізичної культури і спорту Миколаївської міської ради
M9: Наказ
M10: Департамент фінансів Миколаївської міської ради 25.09.2017 № 98 /
A12: ПАСПОРТ
A13: бюджетної програми місцевого бюджету на 2017 рік
A17: 1. | B17: 1300000 | E17: Управління у справах фізичної культури і спорту Миколаївської міської ради
B18: (КПКВК МБ) | E18: (найменування головного розпорядника)
A20: 2. | B20: 1310000 | E20: Управління у справах фізичної культури і спорту
B21: (КПКВК МБ) | E21: (найменування відповідального виконавця)
A23: 3. | B23: 1315030 | H23: Розвиток дитячо-юнацького та резервного спорту
B24: (КПКВК МБ) | E24: (КФКВК) | F24: 1 | H24: (найменування бюджетної програми)
A26: 4. | B26: Обсяг бюджетних призначень/бюджетних асигнувань - 88491,393 тис.гривень, у тому числі загального фонду - 58594,154тис.гривень та спеціального фонду - 29897,239 тис.гривень
A28: 5. | B28: Підстави для виконання бюджетної програми:
B30: Конституція України (Закон 28.06.1996 року № 254/96) із змінами Бюджетний кодекс України (Закон від 8 липня 2010 року № 2546-УІ) зі змінами Закон України Про фізичну культуру і спорт № 770-ХХУ від 18.06.1999р. Наказ Державного комітету України з фізичної культури і спорту від 06.05.1998 року № 917" Про затвердження норм витрат на проведення спортивних змагань та навчально-тренувальних зборів" (зі змінами) Рішення Миколаївської міської ради від 23 груня 2016 року №13/26 "Про міський бюджетміста Миколаєва на 2017 рік" Рішення Миколаївської міської ради від 23 грудня 2016 №13/16 Про внесення змін до рішення Миколаїської міської ради від 05.04.2016 №4/6 "Про затвердження міської програми " Фізична культура і спорту"на 2016-2018 роки" Закон України "Про Державний бюджет України на 2017 рік" від 22.12.2016 №1801-VIII Розпорядження Миколаївського міського голови від 27.03.2017 №74р "Про внесення змін до розпису міського бюджету міста Миколаєва на 2017 рік "
B31: Розпорядження Миколаївського міського голови від 24.04.2017 № 116-р "Про внесення змін до розпису міського бюджету міста Миколаєва на 2017 рік "
B32: Розпорядження Миколаївського міського голови від 04.05.2017 № 129-р "Про внесення змін до розпису міського бюджету міста Миколаєва на 2017 рік "
B33: Розпорядження Миколаївського міського голови від 26.05.2017 № 141-р "Про внесення змін до розпису міського бюджету міста Миколаєва на 2017 рік "
B34: Рішення Миколаївської міської ради від 31 травня 2017 №21/9 "Про внесення змін до рішення міської ради від 23.12.2016 №13/26 "Про міський бюджет міста Миколаєва на 2017 рік
B35: Розпорядження Миколаївського міського голови від 20.06.2017 № 165-р "Про внесення змін до розпису міського бюджету міста Миколаєва на 2017 рік,у зв'язку зі зміною обсягів міжбюджетних трансфертів з інших бюджетів "
B36: Розпорядження Миколаївського міського голови від 20.06.2017 № 166 "Про внесення змін до розпису міського бюджету міста Миколаєва на 2017 рік "
B37: Розпорядження Миколаївського міського голови від 20.06.2017 № 166 "Про внесення змін до розпису міського бюджету міста Миколаєва на 2017 рік "
B38: Розпорядження Миколаївського міського голови від 09.08.2017 № 236р "Про внесення змін до розпису міського бюджету міста Миколаєва на 2017 рік " у зв'язку зі зміною обсягів міжбюджетних трансфертів з інших бюджетів "
B39: Рішення Миколаївської міської ради №24/14 від 13 вересня 2017 року "Про внесення змін до рішення міської ради від 23.12.2016 №13/26"Про міський бюджет міста Миколаєва на 2017 рік"
A40: 6. | B40: Мета бюджетної програми
B41: Створення необхідних умов для гармонічного виховання,фізичного розвитку,повноцінного оздоровлення ,змістовного відпочинку і дозвілля дітей та молоді,самореалізації,набуття навичок здорового способу життя,підготовки спортсменів для резервного спорту.
A43: 7. | B43: Підпрограми, спрямовані на досягнення мети, визначеної паспортом бюджетної програми:
A44: № з/п | C44: КПКВК | D44: КФКВК | E44: Назва підпрограми
C45: 1315031 | D45: 810 | E45: Утримання та навчально-тренувальна робота комунальних дитячо-юнацьких спортивних шкіл
C46: 1315032 | D46: 810 | E46: Фінансова підтримка дитячо-юнацьких спортивних шкіл фізкультурно-спортивних товариств
C47: 1315033 | D47: 810 | E47: Забезпечення підготовки спортсменів вищих категорій школами вищої спортивної майстерності
A49: 8. Обсяги фінансування бюджетної програми у розрізі підпрограм та завдань | Q49: (тис.грн)
A50: № з/п | C50: КПКВК | D50: КФКВК | E50: Підпрограма/завдання бюджетної програми | L50: загальний фонд | N50: спеціальний фонд | P50: Разом
A52: 1 | C52: 2 | D52: 3 | E52: 4 | L52: 5 | N52: 6 | P52: 7
C53: 1315031 | D53: 810 | E53: Утримання та навчально-тренувальна робота комунальних дитячо-юнацьких спортивних шкіл | L53: =L54+L55+L56 -> 47797.422 | N53: =N54+N56+N57 -> 27039.239 | P53: =L53+N53 -> 74836.661
A54: 1 | C54: 1315031 | D54: 810 | E54: Підготовка спортивного резерву та підвищення рівня фізичної підготовленості дітей дитячо-юнацькими спортивними школами | L54: 46335.481 | N54: 337.716 | P54: =L54+N54 -> 46673.197
A55: 2 | C55: 1315031 | D55: 810 | E55: Здійснення заходів з енергозбереження | L55: 1461.941 | P55: =L55+N55 -> 1461.941
A56: 3 | C56: 1315031 | D56: 810 | E56: Проведення капітального ремонту приміщень | N56: =22856.923+1831.8 -> 24688.723 | P56: =L56+N56 -> 24688.723
A57: 4 | C57: 1315031 | D57: 810 | E57: Придбання обладнання та предметів довгострокового користування | N57: =1766.6+51+195.2 -> 2012.8 | P57: =L57+N57 -> 2012.8
C58: 1315032 | D58: 810 | E58: Фінансова підтримка дитячо-юнацьких спортивних шкіл фізкультурно-спортивних товариств | L58: =L59 -> 2884.216 | P58: =L58+N58 -> 2884.216
A59: 5 | C59: 1315032 | D59: 810 | E59: Підготовка спортивного резерву та підвищення рівня фізичної підготовленості дітей дитячо-юнацькими спортивними школами, які підпорядковані громадським організаціям фізкультурно-спортивного спрямування. | L59: =2736.512+147.704 -> 2884.216 | P59: 2884.216
C60: 1315033 | D60: 810 | E60: Забезпечення підготовки спортсменів вищих категорій школами вищої спортивної майстерності | L60: =L61+L62 -> 7912.516 | N60: =N61+N63+N64 -> 2858 | P60: 10770.516
A61: 6 | C61: 1315033 | D61: 810 | E61: Підготовка спортивного резерву та спортсменів вищих категорій школами вищої спортивної майстерності | L61: =7133.574+60+90+20+192+50+216.942 -> 7762.516 | N61: 45 | P61: 7807.516
A62: 7 | C62: 1315033 | D62: 810 | E62: Здійснення заходів/реалізація проектів з енергозбереження | L62: 150 | P62: 150
A63: 8 | C63: 1315033 | D63: 810 | E63: Придбання обладнання та предметів довгострокового користування | N63: =650+7+50-20+150 +400+40+21 -> 1298 | P63: 1298
A64: 9 | C64: 1315033 | D64: 810 | E64: Проведення капітального ремонту приміщень | N64: 1515 | P64: 1515
A65: Усього | L65: =L53+L58+L60 -> 58594.154 | N65: =N53+N60 -> 29897.239 | P65: =L65+N65 -> 88491.393
A67: 9. Перелік регіональних цільових програм, які виконуються у складі бюджетної програми: | Q67: (тис.грн)
A68: Назва регіональної цільової програми та підпрограми | K68: КПКВК | L68: загальний фонд | N68: спеціальний фонд | P68: Разом
A69: 1 | K69: 2 | L69: 3 | N69: 4 | P69: 5
A70: Забезпечення підготовки спортсменів вищих категорій школами вищої спортивної майстерності | K70: 5033 | L70: =L71 -> 7625.574 | N70: 2772 | P70: =L70+N70 -> 10397.574
A71: Міська програма "Фізична культура і спорт" на 2016-2018 роки | L71: =7153.574+472 -> 7625.574 | N71: =2210+562 -> 2772 | P71: =L71+N71 -> 10397.574
A72: Фінансова підтримка дитячо-юнацьких спортивних шкіл фізкультурно-спортивних товариств | K72: 5032 | L72: 2736.512 | P72: =P73 -> 2736.512
A73: Міська програма "Фізична культура і спорт" на 2016-2018 роки | L73: 2736.512 | P73: =L73+N73 -> 2736.512
A74: Усього | L74: =L71+L73 -> 10362.086 | N74: =N70+N72 -> 2772 | P74: =L74+N74 -> 13134.086
A76: 10. Результативні показники бюджетної програми у розрізі підпрограм і завдань:
A77: № з/п | C77: КПКВК | D77: Показники | L77: Одиниця виміру | M77: Джерело інформації | P77: Значення показника
A79: 1 | C79: 2 | D79: 3 | L79: 4 | M79: 5 | P79: 6
D80: Утримання та навчально-тренувальна робота комунальних дитячо-юнацьких спортивних шкіл
A81: 1 | C81: 1315031 | D81: Підготовка спортивного резерву та підвищення рівня фізичної підготовленості дітей дитячо-юнацькими спортивними школами
A82: затрат
A83: 1 | C83: 1315031 | D83: кількість комунальних дитячо-юнацьких спортивних шкіл (ДЮСШ), видатки на утримання яких здійснюються з бюджету | L83: од. | M83: звітність установ | P83: 5
A84: 2 | C84: 1315031 | D84: кількість комунальних спеціалізірованих дитячо-юнацьких спортивних шкіл (СДЮСШОР), видатки на утримання яких здійснюються з бюджету | L84: од. | M84: звітність установ | P84: 7
A85: 3 | C85: 1315031 | D85: кількість комунальних дитячо-юнацьких спортивних шкіл (КДЮСШ), видатки на утримання яких здійснюються з бюджету | L85: од. | M85: звітність установ | P85: 2
A86: 4 | C86: 1315031 | D86: обсяг витрат на утримання комунальних дитячо-юнацьких спортивних шкіл (ДЮСШ), видатки на утримання яких здійснюються з бюджету | L86: тис.грн | M86: Кошторис | P86: =16928.925 -> 16928.925 | S86: =P54 -> 46673.197
A87: 5 | C87: 1315031 | D87: обсяг витрат на утримання комунальних спеціалізованих дитячо-юнацьких спортивних шкіл(СДЮСШОР), видатки на утримання яких здійснюються з бюджету | L87: тис.грн | M87: Кошторис | P87: 20356.342
A88: 6 | C88: 1315031 | D88: обсяг витрат на утримання комунальних дитячо-юнацьких спортивних шкіл (КДЮСШ), видатки на утримання яких здійснюються з бюджету | L88: тис.грн | M88: Кошторис | P88: =9174.213+213.717 -> 9387.93
A89: 7 | C89: 1315031 | D89: кількість штатних працівників комунальних дитячо-юнацьких спортивних шкіл (ДЮСШ), видатки на утримання яких здійснюються з бюджету. | L89: шт.од | M89: штатний розпис | P89: 180
A90: 8 | C90: 1315031 | D90: кількість штатних працівників комунальних спеціалізованих дитячо-юнацьких спортивних шкіл (СДЮСШОР), видатки на утримання яких здійснюються з бюджету. | L90: шт.од | M90: штатний розпис | P90: 208
A91: 9 | C91: 1315031 | D91: кількість штатних працівників комунальної дитячо-юнацьої спортивної шкіли (КДЮСШ), видатки на утримання яких здійснюються з бюджету. | L91: шт.од | M91: штатний розпис | P91: 62
A92: 10 | C92: 1315031 | D92: у тому числі тренерів (ДЮСШ) | L92: шт.од | M92: штатний розпис | P92: 98
A93: 11 | C93: 1315031 | D93: у тому числі тренерів(СДЮСШОР) | L93: шт.од | M93: штатний розпис | P93: 113
A94: 12 | C94: 1315031 | D94: у тому числі тренерів (КДЮСШ) | L94: шт.од | M94: штатний розпис | P94: 31
A95: продукту
A96: 1 | C96: 1315031 | D96: середньорічна кількість учнів комунальних дитячо-юнацьких спортивних шкіл(ДЮСШ) видатки на утримання яких здійснюються з бюджету. | L96: осіб | M96: звітність установ | P96: 2531
A97: 2 | C97: 1315031 | D97: середньорічна кількість учнів комунальних спеціалізованих дитячо-юнацьких спортивних шкіл (СДЮСЩОР), видатки на утримання яких здійснюються з бюджету. | L97: осіб | M97: звітність установ | P97: 1857
A98: 3 | C98: 1315031 | D98: середньорічна кількість учнів комунальної дитячо-юнацької спортивної шкіли (КДЮСШ), видатки на утримання яких здійснюються з бюджету. | L98: осіб | M98: звітність установ | P98: 556
A99: 4 | C99: 1315031 | D99: кількість учнів комунальних дитячо-юнацьких спортивних шкіл,(ДЮСШ) видатки на утримання яких здійснюються з бюджету, що взяли участь у регіональних спортивних змаганнях. | L99: осіб | M99: звітність установ | P99: 2401
A100: 5 | C100: 1315031 | D100: кількість учнів комунальних спеціалізованих дитячо-юнацьких спортивних шкіл,(СДЮСШОР) видатки на утримання яких здійснюються з бюджету, що взяли участь у регіональних спортивних змаганнях. | L100: осіб | M100: звітність установ | P100: 1780
A101: 6 | C101: 1315031 | D101: кількість учнів комунальної дитячо-юнацької спортивної шкіли, (КДЮСШ) видатки на утримання яких здійснюються з бюджету, що взяли участь у регіональних спортивних змаганнях. | L101: осіб | M101: звітність установ | P101: 330
A102: 7 | C102: 1315031 | D102: кількість придбаного малоцінного спортивного обладнання та інвентарю для комунальної дитячо-юнацької спортивної шкіли (КДЮСШ) | L102: од. | M102: звітність установ | P102: 135
A103: 8 | C103: 1315031 | D103: кількість придбаного малоцінного спортивного обладнання та інвентарю для комунальних спеціалізованих дитячо-юнацьких спортивних шкіл (СДЮСШОР) | L103: од. | M103: звітність установ | P103: 310
A104: 9 | C104: 1315031 | D104: кількість придбаного малоцінного спортивного обладнання та інвентарю для комунальних дитячо-юнацьких спортивних шкіл (ДЮСШ) | L104: од. | M104: звітність установ | P104: 267
A105: ефективності
A106: 1 | C106: 1315031 | D106: середні витрати на утримання однієї комунальної дитячо-юнацької спортивної школи (ДЮСШ), видатки на утримання якої здійснюються з бюджету, з розрахунку на одного працівника | L106: грн | M106: розрахунок | P106: =P86/5 -> 3385.785
A107: 2 | C107: 1315031 | D107: середні витрати на утримання однієї комунальної спеціалізованої дитячо-юнацької спортивної школи (СДЮСШОР), видатки на утримання якої здійснюються з бюджету, з розрахунку на одного працівника | L107: грн | M107: розрахунок | P107: =P87/P84 -> 2908.048857
A108: 3 | C108: 1315031 | D108: середні витрати на утримання однієї комунальної дитячо-юнацької спортивної школи (КДЮСШ), видатки на утримання якої здійснюються з бюджету, з розрахунку на одного працівника | L108: грн | M108: розрахунок | P108: =P88/P85 -> 4693.965
A109: 4 | C109: 1315031 | D109: середньомісячна заробітна плата працівника дитячо-юнацької спортивної школи (ДЮСШ), видатки на утримання якої здійснюються з бюджету. | L109: грн | M109: розрахунок | P109: =10027037/P89/12 -> 4642.146759
A110: 5 | C110: 1315031 | D110: середньомісячна заробітна плата працівника спеціалізованої дитячо-юнацької спортивної школи (СДЮСШОР), видатки на утримання якої здійснюються з бюджету | L110: грн | M110: розрахунок | P110: =12388256/P90/12 -> 4963.24359
A111: 6 | C111: 1315031 | D111: середньомісячна заробітна плата працівника дитячо-юнацької спортивної школи (КДЮСШ), видатки на утримання якої здійснюються з бюджету | L111: грн | M111: розрахунок | P111: =3854140/P91/12 -> 5180.295699
A112: 7 | C112: 1315031 | D112: середні витрати на навчально-тренувальну роботу у комунальних дитячо-юнацьких спортивних школах (ДЮСШ), видатки на утримання яких здійснюються з бюджету, у розрахунку на одного учня | L112: грн | M112: розрахунок | P112: 437.813
A113: 8 | C113: 1315031 | D113: середні витрати на навчально-тренувальну роботу у комунальних дитячо-юнацьких спортивних школах (СДЮСШОР), видатки на утримання яких здійснюються з бюджету, у розрахунку на одного учня | L113: грн | M113: розрахунок | P113: 1078.121
A114: 9 | C114: 1315031 | D114: середні витрати на навчально-тренувальну роботу у комунальних дитячо-юнацьких спортивних школах (КДЮСШ), видатки на утримання яких здійснюються з бюджету, у розрахунку на одного учня | L114: грн | M114: розрахунок | P114: 991.797
A115: 10 | C115: 1315031 | D115: середні витрати на забезпечення участі одного учня комунальних дитячо-юнацьких спортивних шкіл, видатки на утримання яких здійснюються з бюджету (СДЮШОР), у регіональних спортивних змаганнях | L115: грн | M115: розрахунок | P115: 437.813
A116: 11 | C116: 1315031 | D116: середні витрати на забезпечення участі одного учня комунальних дитячо-юнацьких спортивних шкіл, видатки на утримання яких здійснюються з бюджету (ДЮСШ), у регіональних спортивних змаганнях | L116: грн | M116: розрахунок | P116: 1078.121
A117: 12 | C117: 1315031 | D117: середні витрати на забезпечення участі одного учня комунальних дитячо-юнацьких спортивних шкіл, видатки на утримання яких здійснюються з бюджету ( КДЮСШР), у регіональних спортивних змаганнях | L117: грн | M117: розрахунок | P117: 991.797
A118: 13 | C118: 1315031 | D118: середня вартість одиниці придбаного малоцінного спортивного обладнання та інвентарю для комунальної дитячо-юнацької спортивної шкіли(КДЮСШ) | L118: грн | M118: розрахунок | P118: 3937.266
A119: 14 | C119: 1315031 | D119: середня вартість одиниці придбаного малоцінного спортивного обладнання та інвентарю для комунальної дитячо-юнацьких спортивних шкіл(ДЮСШ) | L119: грн | M119: розрахунок | P119: 4311.138
A120: 15 | C120: 1315031 | D120: середня вартість одиниці придбаного малоцінного спортивного обладнання та інвентарю для комунальної спеціалізованих дитячо-юнацьких спортивних шкіл(СДЮСШОР) | L120: грн | M120: розрахунок | P120: 5600.533
A121: якості
A122: 1 | C122: 1315031 | D122: кількість підготовлених у комунальних дитячо-юнацьких спортивних школах (ДЮСШ), видатки на утримання яких здійснюються з бюджету, майстрів спорту України | L122: осіб | M122: розрахунок | P122: 1
A123: 2 | C123: 1315031 | D123: кількість підготовлених у комунальних спеціалізованих дитячо-юнацьких спортивних школах (СДЮСШОР), видатки на утримання яких здійснюються з бюджету, майстрів спорту України | L123: осіб | M123: розрахунок | P123: 8
A124: 3 | C124: 1315031 | D124: кількість підготовлених у комунальних дитячо-юнацькі спортивні школі (КДЮСШ), видатки на утримання яких здійснюються з бюджету, майстрів спорту України | L124: осіб | M124: розрахунок | P124: 1
A125: 4 | C125: 1315031 | D125: кількість підготовлених у комунальних дитячо-юнацьких спортивних школах (ДЮСШ), видатки на утримання яких здійснюються з бюджету, кандидатів у майстри спорту України | L125: осіб | M125: розрахунок | P125: 76
A126: 5 | C126: 1315031 | D126: кількість підготовлених у комунальних спеціалізованих дитячо-юнацьких спортивних школах (СДЮСШОР), видатки на утримання яких здійснюються з бюджету, кандидатів у майстри спорту України | L126: осіб | M126: розрахунок | P126: 70
A127: 6 | C127: 1315031 | D127: кількість підготовлених у комунальні дитячо-юнацькі спортивні школі (КДЮСШ), видатки на утримання яких здійснюються з бюджету, кандидатів у майстри спорту України | L127: осіб | M127: розрахунок | P127: 8
A128: 7 | C128: 1315031 | D128: кількість учнів комунальних дитячо-юнацьких спортивних шкіл (ДЮСШ), видатки на утримання яких здійснюються з бюджету, які здобули призові місця в регіональних спортивних змаганнях | L128: осіб | M128: розрахунок | P128: 12
A129: 8 | C129: 1315031 | D129: кількість учнів комунальні дитячо-юнацькі спортивні школі (КДЮСШ), видатки на утримання яких здійснюються з бюджету, які здобули призові місця в регіональних спортивних змаганнях | L129: осіб | M129: розрахунок | P129: 20
A130: 9 | C130: 1315031 | D130: кількість учнів комунальних спеціалізованих дитячо-юнацьких спортивних шкіл (СДЮСШОР), видатки на утримання яких здійснюються з бюджету, які здобули призові місця в регіональних спортивних змаганнях | L130: осіб | M130: розрахунок | P130: 7
A131: 10 | C131: 1315031 | D131: динаміка** кількості учнів комунальних дитячо-юнацьких спортивних шкіл (ДЮСШ), видатки на утримання яких здійснюються з бюджету, порівняно з минулим роком | L131: % | M131: розрахунок | P131: 4.39
A132: 11 | C132: 1315031 | D132: динаміка** кількості учнів комунальних дитячо-юнацьких спортивних шкіл (КДЮСШ), видатки на утримання яких здійснюються з бюджету , порівняно з минулим роком | L132: % | M132: розрахунок | P132: 156
A133: 12 | C133: 1315031 | D133: динаміка** кількості учнів комунальних дитячо-юнацьких спортивних шкіл (СДЮСШОР), видатки на утримання яких здійснюються з бюджету , порівняно з минулим роком | L133: % | M133: розрахунок | P133: 5.86
A134: 2 | C134: 1315031 | D134: Здійснення заходів з енергозбереження
A135: затрат
A136: 1 | C136: 1315031 | D136: обсяг видатків | L136: тис.грн | M136: звітність установ | P136: =P55 -> 1461.941
A137: продукту
A138: 1 | C138: 1315031 | D138: кількість заходів з енергозбереження | L138: од. | M138: звітність установ | P138: 7
A139: 2 | C139: 1315031 | D139: Площа приміщень, які планується утеплити | L139: м² | M139: звітність установ | P139: 186.6
A140: ефективності
A141: 1 | C141: 1315031 | D141: середні витрати на проведення одного заходу з енергосбереження | L141: тис.грн | M141: розрахунок | P141: =P136/P138 -> 208.8487143
A142: 2 | C142: 1315031 | D142: середні витрати на утеплення одного квадратного метра приміщення | L142: тис.грн | M142: розрахунок | P142: =P136/P139 -> 7.834624866
A143: якості
A144: 1 | C144: 1315031 | D144: Обсяг річної економії бюджетних коштів на оплату комунальних послуг та енергоносіїв внаслідок реалізації заходів з енергозбереження | L144: тис.грн | M144: розрахунок | P144: 0.6
B145: 3 | C145: 1315031 | D145: Придбання обладнання та предметів довгострокового користування
A146: 1 | C146: 1315031 | D146: Обсяг витрат на придбання і предметів довгострокового киристування | L146: тис.грн. | M146: звітність установ | P146: =P57 -> 2012.8
A147: продукту
A148: 1 | C148: 1315031 | D148: Кількість одиниць придбання обладнання | L148: од. | M148: звітність установ | P148: =61+2+6+5+7+4+114 -> 199
A149: ефективності
A150: 1 | C150: 1315031 | D150: Середні витрати на одиницю придбання обладнання | L150: тис.грн. | M150: розрахунок | P150: =P146/P148 -> 10.11457286
A151: якості
A152: 1 | C152: 1315031 | D152: Економія коштів на рік, що виникла за результатами впровадження в експлуатацію придбаного обладнання | L152: тис.грн. | M152: розрахунок
B153: 4 | C153: 1315031 | D153: Проведення капітального ремонту приміщення
A154: затрат
A155: 1 | C155: 1315031 | D155: обсяги видатків | L155: тис.грн. | M155: звітність установ | P155: =P56 -> 24688.723
A156: 2 | C156: 1315031 | D156: кількість об'єкта, що потребують капітального ремонту | L156: од. | M156: звітність установ | P156: =16+10+5 -> 31
A157: продукту
A158: 1 | C158: 1315031 | D158: Кількість об'єктів, що планується відремонтувати | L158: од. | M158: звітність установ | P158: 12
A159: ефективності
A160: 1 | C160: 1315031 | D160: Середні витрати на один об'єкт | L160: тис.грн. | M160: розрахунок | P160: =P155/P156 -> 796.4104194
A161: якості
A162: 1 | C162: 1315031 | D162: Питома вага відремонтованих об'єктів у загальній кількості об'єктів, що потребують ремонту | L162: % | M162: розрахунок | P162: 43.75
C163: 1315032 | D163: Фінансова підтримка дитячо-юнацьких спортивних шкіл фізкультурно-спортивних товариств
A164: затрат
A165: 1 | C165: 1315032 | D165: кількість дитячо-юнацьких спортивних шкіл фізкультурно-спортивних товариств, яким надається фінансова підтримка з бюджету, в розрізі їх видів (ДЮСШ) | L165: од. | M165: звітність установ | P165: 2
A166: 2 | C166: 1315032 | D166: обсяг витрат на фінансову підтримку дитячо-юнацьких спортивних шкіл фізкультурно-спортивних товариств в розрізі їх видів (ДЮСШ) | L166: тис.грн | M166: звітність установ | P166: =P59 -> 2884.216
A167: 3 | C167: 1315032 | D167: у тому числі | L167: - | M167: звітність установ
A168: 4 | C168: 1315032 | D168: обсяг витрат на заробітну плату дитячо-юнацьких спортивних шкіл фізкультурно-спортивних товариств в розрізі їх видів (ДЮСШ) | L168: тис.грн | M168: звітність установ | P168: 1805.279
A169: 5 | C169: 1315032 | D169: кількість штатних працівників дитячо-юнацьких спортивних шкіл фізкультурно-спортивних товариств, яким надається фінансова підтримка з бюджету, в розрізі їх видів (ДЮСШ), у регіональних спортивних змаганнях | L169: шт.од | M169: штатний розпис | P169: 39.75
A170: 6 | C170: 1315032 | D170: у т.ч. тренерів (ДЮСШ) | L170: шт.од | M170: штатний розпис | P170: 31.75
A171: продукту
A172: 1 | C172: 1315032 | D172: середньорічна кількість учнів дитячо-юнацьких спортивних шкіл фізкультурно-спортивних товариств, яким надається фінансова підтримка з бюджету (ДЮСШ) | L172: осіб | M172: звітність установ | P172: 752
A173: 2 | C173: 1315032 | D173: кількість учнів дитячо-юнацьких спортивних шкіл фізкультурно-спортивних товариств, яким надається фінансова підтримка з бюджету (ДЮСШ), що взяли участь у регіональних спортивних змаганнях | L173: осіб | M173: звітність установ | P173: 752
A174: 3 | C174: 1315032 | D174: кількість придбаного малоцінного спортивного обладнання та інвентарю для дитячо-юнацьких спортивних шкіл фізкультурно-спортивних товариств, яким надається фінансова підтримка з бюджету (ДЮСШ) | L174: од. | M174: звітність установ | P174: 1519
A175: ефективності
A176: 1 | C176: 1315032 | D176: середні витрати на фінансову підтримку однієї дитячо-юнацької спортивної школи фізкультурно-спортивного товариства, якій надається фінансова підтримка з бюджету (ДЮСШ), з розрахунку на одного працівника | L176: грн | M176: розрахунок | P176: 1368.256
A177: 2 | C177: 1315032 | D177: середньомісячна заробітна плата працівника дитячо-юнацької спортивної школи фізкультурно-спортивного товариства, якому надається фінансова підтримка з бюджету (ДЮСШ) | L177: грн | M177: розрахунок | P177: 3784.65
A178: 3 | C178: 1315032 | D178: середня вартість одиниці придбаного малоцінного спортивного обладнання та інвентарю для дитячо-юнацьких спортивних шкіл фізкультурно-спортивних товариств, яким надається фінансова підтримка з бюджету(ДЮСШ) | L178: грн | M178: розрахунок | P178: 120.345
A179: якості
A180: 1 | C180: 1315032 | D180: кількість підготовлених у дитячо-юнацьких спортивних школах фізкультурно-спортивних товариств, яким надається фінансова підтримка з бюджету (ДЮСШ), майстрів спорту України | L180: осіб | M180: розрахунок | P180: 2
A181: 2 | C181: 1315032 | D181: кількість підготовлених у дитячо-юнацьких спортивних школах фізкультурно-спортивних товариств, яким надається фінансова підтримка з бюджету, у розрізі їх видів (ДЮСШ), кандидатів у майстри спорту України | L181: осіб | M181: розрахунок | P181: 15
A182: 3 | C182: 1315032 | D182: кількість учнів дитячо-юнацьких спортивних шкіл фізкультурно-спортивних товариств, яким надається фінансова підтримка з бюджету (ДЮСШ), які здобули призові місця в регіональних спортивних змаганнях | L182: осіб | M182: розрахунок | P182: 752
A183: 4 | C183: 1315032 | D183: динаміка кількості учнів дитячо-юнацьких спортивних шкіл фізкультурно-спортивних товариств, яким надається фінансова підтримка з бюджету (ДЮСШ), порівняно з минулим роком | L183: % | M183: розрахунок | P183: 0
D184: Забезпечення підготовки спортсменів вищих категорій школами вищої спортивної майстерності
A185: 1 | C185: 1315033 | D185: Підготовка спортивного резерву та спортсменів вищих категорій школами вищої спортивної майстерності
A186: затрат
A187: 1 | C187: 1315033 | D187: кількість шкіл вищої спортивної майстерності (ШВСМ) | L187: од. | M187: звітність установ | P187: 1
A188: 2 | C188: 1315033 | D188: кількість штатних працівників (ШВСМ) | L188: шт.од | M188: штатний розпис | P188: 59
A189: 3 | C189: 1315033 | D189: середньорічна кількість учнів ШВСМ постійного/змінного складу | L189: осіб | M189: звітність установ | P189: 128
A190: 4 | C190: 1315033 | D190: Кількість всеукраїнських змагань, у яких учні ШВСМ беруть участь | L190: од. | M190: звітність установ | P190: 69
A191: 5 | C191: 1315033 | D191: кількість навчально-тренувальних зборів | L191: од. | M191: звітність установ | P191: 58
A192: продукту
A193: 1 | C193: 1315033 | D193: кількість людино-днів проведених у ШВСМ навчально-тренувальних зборів | L193: од. | M193: звітність установ | P193: 7160
A194: 2 | C194: 1315033 | D194: кількість людино-днів участі у ШВСМ у всеукраїнських змагань | L194: од. | M194: звітність установ | P194: 2450
A195: 3 | C195: 1315033 | D195: кількість придбаного малоцінного спортивного обладнання та інвентарю для ШВСМ | L195: од. | M195: звітність установ | P195: 24020
A196: ефективності
A197: 1 | C197: 1315033 | D197: середні витрати на проведення ШВСМ одного людино-дня навчально-тренувальних зборів | L197: грн | M197: розрахунок | P197: 82.55
A198: 2 | C198: 1315033 | D198: середні витрати на забезпечення одного людино-дня для участі учнів ШВСМ у всеукраїнських змагань | L198: грн. | M198: розрахунок | P198: 17.142
A199: 3 | C199: 1315033 | D199: середня вартість одиниці придбаного малоцінного спортивного обладнання та інвентарю для ШВСМ | L199: грн | M199: розрахунок | P199: 1049.04
A200: якості
A201: 1 | C201: 1315033 | D201: кількість підготовлених у ШВСМ майстрів спорту України | L201: осіб | M201: розрахунок | P201: 1
A202: 2 | C202: 1315033 | D202: Кількість підготовлених в ШВСМ кандидатів у майстри спорту України | L202: осіб | M202: розрахунок | P202: 5
A203: 3 | C203: 1315033 | D203: Кількість підготовлених в ШВСМ майстрів спорту міждународного класу України | L203: осіб | M203: розрахунок | P203: 1
A204: 4 | C204: 1315033 | D204: Кількість підготовлених в ШВСМ членів збірних команд України | L204: осіб | M204: розрахунок | P204: 37
A205: 5 | C205: 1315033 | D205: Кількість підготовлених в ШВСМ кандидатів до складу збірних команд України протягом року | L205: осіб | M205: розрахунок | P205: 7
A206: 2 | C206: 1315033 | D206: Здійснення заходів/реалізація проектів з енергозбереження
A207: затрат
A208: 1 | C208: 1315033 | D208: Обсяги видатків | L208: тис.грн | M208: звітність установ | P208: =P62 -> 150
A209: продукту
A210: 1 | C210: 1315033 | D210: кількість заходів з енергозбереження | L210: од. | M210: звітність установ | P210: =1+1 -> 2
A211: 2 | C211: 1315033 | D211: площа приміщень, яку планується утеплити | L211: м² | M211: звітність установ | P211: =172 -> 172
A212: ефективності
A213: 1 | C213: 1315033 | D213: середні витрати на придбання і встановлення одиниці обладнання | L213: грн | M213: розрахунок | P213: =P208/P210 -> 75
A214: 2 | C214: 1315033 | D214: середні витрати на утеплення 1 кв.м. приміщення | L214: грн | M214: розрахунок | P214: =P208/P211*1000 -> 872.0930233
A215: якості
A216: 1 | C216: 1315033 | D216: Обсяг річної економії бюджетних коштів на оплату комунальних послуг та енергоносіїв внаслідок реалізації заходів з енергозбереження | L216: тис.грн | M216: розрахунок | P216: 2.5
A217: 3 | C217: 1315033 | D217: Придбання обладнання та предметів довгострокового користування
A218: затрат
... 30 more rows
